bitfinex/quotes_ETHUSD_20250605
["timestamp","ask_amount","ask_price","bid_price","bid_amount"]
[1749134337267,4.94977112,2584.2,2583.3,16.0]
[1749134337466,3.87011881,2583.9,2583.4,2.041]
[1749134337622,0.77401001,2583.8,2583.5,7.006]
[1749134337822,1.08,2584.2,2583.5,7.006]
[1749134338048,3.86981927,2584.1,2583.5,7.006]
[1749134338258,3.87034814,2583.8,2583.5,7.006]
[1749134339061,3.87036423,2583.8,2583.5,7.006]
[1749134339262,4.64441407,2583.8,2583.5,7.006]
[1749134339570,1.08,2584.2,2583.5,7.006]
[1749134339855,3.87022545,2583.9,2583.5,7.006]
[1749134340058,3.87002257,2584.0,2583.6,10.0]
[1749134340258,0.38700226,2583.9,2583.6,10.0]
[1749134340444,4.94980409,2584.2,2583.7,10.0]
[1749134340647,3.86984326,2584.1,2583.6,10.0]
[1749134340886,1.08,2584.2,2583.6,10.0]
[1749134341028,3.87053674,2583.7,2583.2,16.0]
[1749134341379,3.87053674,2583.7,2583.4,16.0]
[1749134341380,0.77408908,2583.7,2583.4,16.0]
[1749134341523,4.64462944,2583.7,2583.4,16.0]
[1749134341722,4.64462944,2583.7,2583.3,9.033]
[1749134341723,4.64462944,2583.7,2583.5,6.991]
[1749134341977,0.77408908,2583.7,2583.5,6.991]
[1749134342124,1.08,2584.2,2583.7,10.0]
[1749134342324,1.08,2584.2,2583.8,13.87017356]
[1749134342529,1.08,2584.2,2583.7,10.0]
[1749134342530,3.86989472,2584.1,2583.7,10.0]
[1749134342731,4.94974806,2584.2,2583.7,3.87041187]
[1749134343063,0.49496768,2584.1,2583.8,9.024]
[1749134343239,1.08,2584.2,2583.9,2.041]
[1749134343764,3.86983517,2584.1,2583.9,2.041]
[1749134344072,4.94974821,2584.2,2583.9,2.041]
[1749134344443,3.86981927,2584.1,2583.9,2.041]
[1749134344675,1.08,2584.2,2583.9,2.041]
[1749134344878,0.49496868,2584.1,2583.9,2.041]
[1749134345083,0.49496868,2584.1,2584.0,9.016]
[1749134345377,1.08,2584.2,2584.0,9.016]
[1749134345684,4.94966953,2584.2,2584.1,8.353]
[1749134345975,4.94966953,2584.2,2584.1,17.364]
[1749134346178,5.83159689,2584.2,2584.1,17.364]
[1749134346353,5.83159689,2584.2,2584.1,17.362]
[1749134346552,5.83159689,2584.2,2584.1,8.353]
[1749134346760,15.20511304,2584.2,2584.1,10.394]
[1749134346953,6.45179689,2584.2,2584.1,10.394]
[1749134347581,6.81820761,2584.2,2584.1,8.353]
[1749134347781,5.90179689,2584.2,2584.1,10.394]
[1749134348681,6.45179689,2584.2,2584.1,10.394]
[1749134348978,5.90179689,2584.2,2584.1,10.394]
[1749134349163,5.90179689,2584.2,2584.1,17.358]
[1749134349370,6.80876848,2584.2,2584.1,10.394]
[1749134349553,22.80876848,2584.2,2584.1,10.394]
[1749134349881,22.81820761,2584.2,2584.1,10.394]
[1749134350078,22.26820761,2584.2,2584.1,10.394]
[1749134350284,5.90179689,2584.2,2584.1,10.394]
[1749134352788,0.88192736,2584.2,2584.1,10.394]
[1749134352989,4.98205571,2584.6,2584.1,14.26373191]
[1749134353156,3.86923336,2584.5,2584.1,14.26373191]
[1749134353357,3.86923336,2584.5,2584.1,10.394]
[1749134353556,4.75442861,2584.5,2584.1,10.394]
[1749134353759,0.88510689,2584.5,2584.1,14.26375426]
[1749134353957,0.88510689,2584.5,2584.2,3.86958385]
[1749134354159,1.061,2584.9,2584.5,3.86912437]
[1749134354381,3.86885124,2584.8,2584.3,10.82250792]
[1749134354583,1.51292976,2585.1,2584.4,3.86936245]
[1749134354584,5.3813062,2585.1,2584.4,3.86936245]
[1749134354897,1.51292976,2585.1,2584.7,3.86885378]
[1749134355104,0.53811224,2585.0,2584.8,8.996]
[1749134355674,3.86879331,2584.8,2584.3,18.38639814]
[1749134355890,1.1261,2585.1,2584.4,2.041]
[1749134356185,3.8685252,2585.0,2584.5,3.86918431]
[1749134356385,3.8685252,2585.0,2584.4,8.99]
[1749134356386,3.8682173,2585.2,2584.7,3.86887394]
[1749134356701,1.1152,2585.5,2584.8,6.946]
[1749134356861,1.1152,2585.5,2584.9,8.991]
[1749134357060,3.86799007,2585.4,2584.9,8.991]
[1749134357304,3.86807343,2585.3,2584.8,16.0]
[1749134357462,3.86831885,2585.2,2584.9,8.988]
[1749134357871,3.86850839,2585.0,2584.5,3.86915463]
[1749134358069,0.38685084,2584.9,2584.6,12.8550018]
[1749134358295,3.86822362,2585.2,2584.7,3.86886981]
[1749134358701,1.1152,2585.5,2584.6,8.986]
[1749134358907,0.15415417,2585.8,2585.1,19.8681924]
[1749134359111,0.15415417,2585.8,2585.6,3.86752449]
[1749134359259,0.15415417,2585.8,2585.7,67.20942468]
[1749134359466,0.15415417,2585.8,2585.7,53.94008668]
[1749134360521,0.15415417,2585.8,2585.7,41.082662]
[1749134360719,0.15415417,2585.8,2585.7,26.392]
[1749134360879,0.15415417,2585.8,2585.7,50.314591]
[1749134361217,0.15415417,2585.8,2585.7,51.83376968]
[1749134361535,0.15415417,2585.8,2585.7,35.794]
[1749134361818,0.15415417,2585.8,2585.7,17.349]
[1749134362021,0.15415417,2585.8,2585.7,17.347]
[1749134362608,4.02142928,2585.8,2585.7,8.352]
[1749134362783,4.57529816,2585.8,2585.7,17.344]
[1749134363421,0.70802305,2585.8,2585.7,17.344]
[1749134363634,4.57529816,2585.8,2585.7,17.344]
[1749134363952,4.57529816,2585.8,2585.7,8.352]
[1749134364132,4.57529816,2585.8,2585.7,10.392]
[1749134364298,4.57529816,2585.8,2585.7,17.344]
[1749134364501,4.57529816,2585.8,2585.7,17.343]
[1749134365237,4.57529816,2585.8,2585.7,10.392]
[1749134365413,0.70802305,2585.8,2585.7,17.337]
[1749134365752,4.02142928,2585.8,2585.7,17.315]
[1749134366039,0.15415417,2585.8,2585.7,17.315]
[1749134366401,4.02142928,2585.8,2585.7,8.352]
[1749134366640,12.55003458,2585.8,2585.7,10.37]
[1749134366856,12.55003458,2585.8,2585.7,17.332]
[1749134367004,14.22949804,2585.8,2585.7,17.332]
[1749134367498,14.22949804,2585.8,2584.6,16.0]
[1749134367499,3.86806186,2585.3,2584.6,15.82800054]
[1749134367697,3.86823702,2585.2,2584.7,8.349]
[1749134367950,3.86794278,2585.4,2584.9,3.86854027]
[1749134368114,8.5286053,2585.5,2584.7,8.349]
[1749134368316,0.85286053,2585.4,2584.8,2.018]
[1749134368519,3.86816211,2585.3,2584.8,2.018]
[1749134368843,3.86802305,2585.3,2584.8,2.018]
[1749134369041,3.86816292,2585.3,2584.9,6.961]
[1749134369204,4.72708872,2585.2,2584.9,6.961]
[1749134369409,3.86819279,2585.2,2584.9,6.961]
[1749134369704,1.27715417,2585.8,2584.9,6.961]
[1749134369936,12.39607032,2585.7,2584.9,6.961]
[1749134370250,3.8682657,2585.2,2584.9,6.961]
[1749134370430,4.64189886,2585.2,2584.9,6.961]
[1749134370631,3.8683223,2585.1,2585.0,2.018]
[1749134371054,12.3969276,2585.1,2585.0,8.974]
[1749134371235,14.59360122,2585.1,2585.0,8.974]
[1749134371441,6.06499592,2585.1,2585.0,8.973]
[1749134371637,3.8683223,2585.1,2585.0,8.973]
[1749134372758,3.86877127,2584.8,2584.7,8.349]
[1749134372964,3.86877127,2584.8,2584.7,17.316]
[1749134373461,3.86877127,2584.8,2584.7,10.367]
[1749134373765,3.86877127,2584.8,2584.7,17.314]
[1749134373927,3.86877127,2584.8,2584.7,10.367]
[1749134374122,3.86877127,2584.8,2584.7,17.313]
[1749134374360,4.98177127,2584.8,2584.7,17.312]
[1749134374765,4.98177127,2584.8,2584.7,17.311]
[1749134374970,13.51037657,2584.8,2584.7,17.311]
[1749134375129,15.24827898,2584.8,2584.7,17.311]
[1749134375670,15.24827898,2584.8,2584.7,10.367]
[1749134376041,15.79827898,2584.8,2584.7,10.367]
[1749134376374,6.71967368,2584.8,2584.7,10.367]
[1749134376575,15.24827898,2584.8,2584.7,10.367]
[1749134376731,15.24827898,2584.8,2584.7,17.335]
[1749134376932,6.71967368,2584.8,2584.7,17.335]
[1749134378247,5.60667368,2584.8,2584.7,17.335]
[1749134378458,3.86877127,2584.8,2584.7,17.335]
[1749134378978,9.6635053,2585.1,2584.7,17.335]
[1749134379203,3.86862372,2584.9,2584.7,17.335]
[1749134379362,3.86877127,2584.8,2584.7,17.335]
[1749134379697,3.86877127,2584.8,2584.7,10.367]
[1749134379848,5.49537378,2584.8,2584.7,10.367]
[1749134380056,5.49537378,2584.8,2584.7,17.319]
[1749134380601,5.49537378,2584.8,2584.7,17.317]
[1749134381251,5.49537378,2584.8,2584.7,10.367]
[1749134381447,5.49537378,2584.8,2584.7,17.314]
[1749134382889,5.49537378,2584.8,2584.7,10.367]
[1749134383050,5.49537378,2584.8,2584.7,17.306]
[1749134386701,3.86877127,2584.8,2584.7,17.306]
[1749134386908,3.8686485,2584.9,2584.7,17.306]
[1749134387090,3.86851544,2585.0,2584.7,17.306]
[1749134387293,3.86864533,2584.9,2584.7,17.306]
[1749134387812,3.86877127,2584.8,2584.7,10.367]
[1749134388123,4.2556358,2584.8,2584.7,17.278]
[1749134388974,0.38686453,2584.8,2584.7,17.278]
[1749134389199,3.86872353,2584.9,2584.7,17.278]
[1749134389397,3.86877127,2584.8,2584.7,17.278]
[1749134391923,4.92697127,2584.8,2584.7,17.255]
[1749134392222,3.86877127,2584.8,2584.7,17.255]
[1749134395419,1.83183316,2585.2,2584.7,17.255]
[1749134395729,1.0582,2585.2,2584.7,17.255]
[1749134395911,0.35971712,2585.3,2584.7,17.255]
[1749134396126,5.26145269,2585.5,2584.7,17.255]
[1749134396299,0.35987759,2585.4,2584.7,17.255]
[1749134396501,1.26315417,2585.8,2584.7,18.2914]
[1749134396700,0.36884801,2585.7,2584.9,3.86847681]
[1749134396927,0.36884801,2585.6,2585.0,6.87]
[1749134397124,0.55191346,2585.7,2585.0,6.87]
[1749134397426,0.55191346,2585.7,2585.0,10.73845284]
[1749134397589,0.36055764,2585.6,2585.0,10.73845284]
[1749134397796,0.36054121,2585.5,2585.0,10.73845284]
[1749134398004,1.18806268,2585.6,2585.0,10.73845284]
[1749134398207,0.55191346,2585.7,2585.2,3.86813159]
[1749134398406,1.26315417,2585.8,2585.3,8.834]
[1749134398615,1.63194324,2585.8,2585.3,8.834]
[1749134398824,0.15415417,2585.8,2585.3,12.70195325]
[1749134399029,1.21469939,2585.8,2585.3,12.70194754]
[1749134399228,1.21469939,2585.8,2585.3,9.8616]
[1749134399529,1.21469939,2585.8,2585.4,3.8677721]
[1749134399836,0.15415417,2585.8,2585.6,10.0]
[1749134400004,0.15415417,2585.8,2585.5,3.86765214]
[1749134400005,0.15415417,2585.8,2585.7,6.858]
[1749134400525,0.15415417,2585.8,2585.7,16.25346168]
[1749134400693,0.15415417,2585.8,2585.7,17.28776168]
[1749134401094,0.15415417,2585.8,2585.7,1.0343]
[1749134401393,0.15415417,2585.8,2585.7,8.828]
[1749134401794,0.15415417,2585.8,2585.5,16.0]
[1749134401995,9.85915572,2585.8,2585.6,1.971]
[1749134402226,9.85915572,2585.8,2585.7,8.825]
[1749134403128,14.78843083,2585.8,2585.7,1.971]
[1749134403308,14.78843083,2585.8,2585.7,8.82]
[1749134403510,14.78843083,2585.8,2585.7,1.971]
[1749134403721,15.14761162,2585.8,2585.7,1.971]
[1749134403933,17.12358685,2585.8,2585.7,1.971]
[1749134404113,16.76440909,2585.8,2585.7,1.971]
[1749134405232,15.94729749,2585.8,2585.7,1.971]
[1749134405409,15.58813467,2585.8,2585.7,1.971]
[1749134406009,4.88651829,2585.2,2584.7,8.349]
[1749134406209,4.88651829,2585.2,2584.8,8.808]
[1749134406210,8.52872713,2585.1,2584.8,8.808]
[1749134406435,8.52872713,2585.1,2584.9,6.837]
[1749134406951,8.52872713,2585.1,2585.0,6.834]
[1749134407258,8.52872713,2585.1,2584.8,1.971]
[1749134407409,5.21002476,2585.0,2584.8,8.803]
[1749134407597,1.34151782,2585.0,2584.8,8.803]
[1749134407795,1.70047213,2585.0,2584.8,8.803]
[1749134407994,8.52872713,2585.1,2584.8,8.803]
[1749134408198,12.39707981,2585.1,2584.8,8.803]
[1749134408434,8.52872713,2585.1,2584.8,8.803]
[1749134409119,12.39711243,2585.1,2584.8,8.803]
[1749134409324,12.75620676,2585.1,2584.8,8.803]
[1749134409523,5.53827127,2584.8,2584.7,8.349]
[1749134409733,30.42616129,2584.8,2584.7,10.32]
[1749134410435,30.0669984,2584.8,2584.7,10.32]
[1749134410648,30.4344812,2584.8,2584.7,10.32]
[1749134410996,30.0669984,2584.8,2584.7,10.32]
[1749134411202,33.95747116,2584.8,2584.7,10.32]
[1749134411442,34.32514195,2584.8,2584.7,10.32]
[1749134412346,34.32493169,2584.8,2584.7,1.971]
[1749134412548,34.32490522,2584.8,2584.7,1.971]
[1749134412709,33.96597526,2584.8,2584.7,1.971]
[1749134412905,34.32493149,2584.8,2584.7,1.971]
[1749134413107,3.86962742,2584.3,2583.9,0.029485]
[1749134413335,8.52872713,2584.1,2584.0,8.782]
[1749134413856,1.6706,2584.0,2583.9,0.029485]
[1749134414018,5.54056904,2584.0,2583.9,8.808485]
[1749134414223,7.33448285,2584.0,2583.9,8.807485]
[1749134414440,3.46451381,2584.0,2583.9,8.807485]
[1749134414638,7.33448285,2584.0,2583.9,8.804485]
[1749134414954,3.46451381,2584.0,2583.9,8.804485]
[1749134415104,7.33448285,2584.0,2583.9,8.804485]
[1749134415300,7.33448285,2584.0,2583.9,2.000485]
[1749134415535,7.33448285,2584.0,2583.9,8.801485]
[1749134416345,1.79391381,2584.0,2583.9,8.801485]
[1749134416665,19.8696843,2584.2,2583.9,8.801485]
[1749134416868,3.86985308,2584.1,2584.0,8.766]
[1749134417747,16.0,2584.2,2584.0,8.766]
[1749134418135,19.86970463,2584.2,2584.0,8.766]
[1749134418484,0.46949845,2584.1,2584.0,8.766]
[1749134419034,16.0,2584.5,2584.0,8.766]
[1749134419262,19.86922377,2584.5,2584.0,8.766]
[1749134419472,3.86922377,2584.5,2584.0,8.766]
[1749134419644,0.55,2584.5,2584.1,1.0577]
[1749134419842,0.90787271,2584.4,2584.1,1.0577]
[1749134420044,0.90787271,2584.4,2584.0,8.766]
[1749134420452,8.52872713,2584.8,2584.0,8.766]
[1749134420453,0.55,2584.6,2584.0,8.766]
[1749134420648,1.0805,2584.9,2584.1,16.0]
[1749134420833,1.22815417,2585.8,2584.5,9.929694]
[1749134421037,8.52872713,2585.6,2584.6,1.74220958]
[1749134421248,3.86820072,2585.2,2584.8,16.0]
[1749134421480,8.52872713,2585.3,2584.2,3.86959659]
[1749134421481,0.55,2584.8,2584.2,1.972]
[1749134421778,8.52872713,2584.6,2583.7,16.0]
[1749134422083,0.85287271,2584.5,2583.6,16.0]
[1749134422319,4.72212406,2584.5,2584.0,8.81]
[1749134422445,4.72212986,2584.5,2584.0,8.81]
[1749134422840,0.85287271,2584.5,2584.0,8.81]
[1749134423041,1.32507225,2584.4,2584.1,8.804]
[1749134423244,1.32507225,2584.4,2583.6,16.0]
[1749134423631,12.94869617,2584.0,2583.8,1.972]
[1749134423740,14.02949617,2584.0,2583.8,1.972]
[1749134424061,15.81942771,2584.0,2583.8,1.972]
[1749134425262,31.81942771,2584.0,2583.8,1.972]
[1749134425945,31.81942771,2584.0,2583.5,8.353]
[1749134425946,3.87043763,2583.7,2583.5,10.298]
[1749134426146,14.03009532,2583.6,2583.5,10.298]
[1749134426345,15.82014861,2583.6,2583.5,10.298]
[1749134427687,32.20455562,2583.6,2583.5,10.298]
[1749134428179,32.20455562,2583.6,2583.5,1.945]
[1749134431183,17.39943929,2583.6,2583.5,1.945]
[1749134431796,17.01503228,2583.6,2583.5,1.945]
[1749134432483,3.87116754,2583.2,2583.1,0.02]
[1749134432683,13.59477834,2583.2,2583.1,8.763]
[1749134433093,9.7236108,2583.2,2583.1,8.763]
[1749134433389,5.95929432,2583.5,2583.1,8.763]
[1749134433586,1.67637051,2583.4,2583.1,8.763]
[1749134434084,9.7236108,2583.6,2583.1,8.763]
[1749134434287,13.59426489,2583.6,2583.1,8.763]
[1749134434465,9.7236108,2583.6,2583.1,8.763]
[1749134434656,13.59420055,2583.6,2583.1,8.763]
[1749134434852,9.7236108,2583.3,2583.1,0.02]
[1749134435078,9.7236108,2583.3,2583.2,8.736]
[1749134435277,4.3126348,2583.6,2583.1,0.02]
[1749134435278,0.99203331,2583.6,2583.1,0.02]
[1749134435448,0.55,2583.5,2583.1,0.02]
[1749134435652,4.42116754,2583.2,2583.1,0.02]
[1749134435848,6.33026964,2583.2,2583.1,0.02]
[1749134436085,16.05388044,2583.2,2583.1,0.02]
[1749134436953,1.9091021,2583.2,2583.1,0.02]
[1749134437186,10.16564411,2583.6,2583.1,0.02]
[1749134437485,4.42116754,2583.2,2583.1,0.02]
[1749134437685,0.55,2583.2,2583.1,8.772]
[1749134438188,0.80957491,2583.6,2583.1,8.772]
[1749134438487,3.87047136,2583.7,2583.1,9.8092]
[1749134438789,1.1001,2584.0,2583.1,9.8092]
[1749134438974,3.86985877,2584.1,2583.2,16.0]
[1749134439284,13.59379951,2583.9,2583.1,1.0572]
[1749134439492,9.7236108,2583.9,2583.3,8.755]
[1749134439687,1.35936628,2583.8,2583.3,8.755]
[1749134439862,0.35918041,2584.2,2583.3,8.755]
[1749134440062,5.26673703,2584.3,2583.5,1.1207]
[1749134440283,9.7236108,2584.2,2583.5,1.1207]
[1749134440480,11.1867241,2584.2,2583.5,1.1207]
[1749134441063,9.7236108,2583.9,2583.6,8.75]
[1749134441591,9.7236108,2583.9,2583.7,6.804]
[1749134441999,9.7236108,2583.9,2583.6,1.945]
[1749134442000,10.2736108,2583.9,2583.8,6.801]
[1749134442208,1.45030524,2583.9,2583.8,6.801]
[1749134442355,0.55,2584.1,2583.8,6.801]
[1749134442687,0.36003091,2584.0,2583.8,15.158]
[1749134442866,0.36001728,2584.1,2583.8,16.2847]
[1749134443750,3.86996904,2584.0,2583.9,8.357]
[1749134443963,9.7236108,2584.0,2583.9,10.302]
[1749134444187,10.73197361,2584.0,2583.9,10.302]
[1749134444395,1.00836281,2584.0,2583.9,10.302]
[1749134444580,0.55,2584.2,2583.9,10.302]
[1749134444775,0.35997322,2584.0,2583.9,10.302]
[1749134445085,0.35997322,2584.1,2583.9,17.102]
[1749134445283,9.7236108,2584.3,2583.9,17.102]
[1749134446082,0.36010798,2584.2,2583.9,17.102]
[1749134446390,1.00837188,2584.2,2584.0,6.792]
[1749134447489,9.7236108,2584.3,2584.0,6.792]
[1749134447890,0.3675416,2584.8,2584.1,4.33370075]
[1749134448090,9.7236108,2584.9,2584.1,0.464]
[1749134448288,9.7236108,2584.6,2584.2,8.747]
[1749134448457,10.69597188,2584.6,2584.2,8.747]
[1749134448988,10.69597188,2584.6,2584.2,1.945]
[1749134449177,10.69597188,2584.6,2584.3,6.8]
[1749134449559,14.56506316,2584.6,2584.3,6.8]
[1749134449782,10.69597188,2584.6,2584.4,6.797]
[1749134450062,1.4564941,2584.5,2584.4,6.797]
[1749134452060,1.4564941,2584.5,2584.4,8.731]
[1749134452690,1.4564941,2584.5,2583.9,8.821]
[1749134452891,9.7236108,2584.3,2583.9,8.821]
[1749134453293,9.7236108,2584.3,2584.0,1.945]
[1749134453471,9.7236108,2584.3,2584.1,6.783]
[1749134453472,5.22898414,2584.2,2584.1,6.783]
[1749134453668,1.3593058,2584.2,2584.1,6.783]
[1749134453994,5.2290337,2584.2,2584.1,6.783]
[1749134454197,3.86981927,2584.1,2584.0,1.945]
[1749134454402,5.22906555,2584.2,2584.0,8.724]
[1749134454566,1.49524373,2584.1,2584.0,8.724]
[1749134455260,11.21885453,2584.1,2584.0,8.724]
[1749134456001,15.0886738,2584.1,2584.0,8.717]
[1749134456202,11.21885453,2584.1,2584.0,1.945]
[1749134456398,11.21885453,2584.1,2584.0,8.716]
[1749134456977,1.49524373,2584.1,2584.0,8.716]
[1749134457181,9.7236108,2584.3,2584.0,8.716]
[1749134458782,9.7236108,2584.5,2584.0,8.716]
[1749134459897,0.35855231,2584.7,2584.1,0.464]
[1749134460079,10.08216311,2584.7,2584.1,0.464]
[1749134460267,9.7236108,2584.4,2583.9,8.357]
[1749134460468,3.86963274,2584.3,2584.2,1.909]
[1749134460668,13.59324354,2584.3,2584.2,1.909]
[1749134461192,13.59324354,2584.3,2584.2,8.662]
[1749134462314,3.86963274,2584.3,2584.2,8.662]
[1749134462519,9.7236108,2584.3,2584.2,8.662]
[1749134462716,15.44474857,2584.3,2584.2,6.753]
[1749134462914,15.44474857,2584.3,2584.2,8.652]
[1749134463379,15.81417069,2584.3,2584.2,8.652]
[1749134463583,11.9446509,2584.3,2584.2,8.652]
[1749134463793,11.57522878,2584.3,2584.2,8.652]
[1749134464020,15.44474857,2584.3,2584.2,1.909]
[1749134464318,15.81417069,2584.3,2584.2,8.647]
[1749134464514,15.44474857,2584.3,2584.2,1.909]
[1749134464694,15.81417069,2584.3,2584.2,8.646]
[1749134465098,15.8142907,2584.3,2584.2,8.646]
[1749134465497,15.44474857,2584.3,2584.2,8.646]
[1749134465820,15.44474857,2584.3,2584.2,8.641]
[1749134466016,11.94477091,2584.3,2584.2,8.641]
[1749134466386,0.36954213,2584.3,2584.2,8.641]
[1749134466581,1.47395231,2584.7,2584.2,8.641]
[1749134466582,0.36954213,2584.5,2584.2,8.641]
[1749134466807,0.72809444,2584.7,2584.4,3.86927842]
[1749134467037,0.35855231,2584.7,2584.6,3.86907064]
[1749134467404,0.35855231,2584.7,2584.6,4.33307064]
[1749134467732,0.35855231,2584.7,2584.6,20.33307064]
[1749134467913,0.35855231,2584.7,2584.6,28.97607064]
[1749134468889,0.35855231,2584.7,2584.6,47.56818964]
[1749134469148,0.35855231,2584.7,2584.6,35.3487973]
[1749134470235,0.35855231,2584.7,2584.6,35.8987973]
[1749134471351,0.35878172,2585.0,2584.9,33.86862161]
[1749134471493,0.35878172,2585.0,2584.9,36.07199061]
[1749134471808,0.35878172,2585.0,2584.9,44.70299061]
[1749134472388,0.35878172,2585.0,2584.9,44.80849061]
[1749134473151,0.35878172,2585.0,2584.9,39.91683261]
[1749134473839,0.35878172,2585.0,2584.9,25.66712161]
[1749134474045,0.35878172,2585.0,2584.9,28.59712161]
[1749134474240,0.35878172,2585.0,2584.9,34.50734861]
[1749134474403,0.35878172,2585.0,2584.9,32.05860461]
[1749134475038,0.35878172,2585.0,2584.9,28.59712161]
[1749134475766,0.35878172,2585.0,2584.9,58.59712161]
[1749134476253,0.35878172,2585.0,2584.9,58.80524543]
[1749134476462,0.35878172,2585.0,2584.9,58.60657361]
[1749134476750,0.35878172,2585.0,2584.9,55.21855061]
[1749134477554,0.35878172,2585.0,2584.9,55.76855061]
[1749134477925,0.35878172,2585.0,2584.9,52.48817061]
[1749134479113,0.35878172,2585.0,2584.9,36.50592361]
[1749134479313,0.35878172,2585.0,2584.9,42.49861561]
[1749134480535,0.35878172,2585.0,2584.9,30.63133961]
[1749134480857,0.35878172,2585.0,2584.9,22.02833961]
[1749134481016,0.35878172,2585.0,2584.9,30.63033961]
[1749134482825,0.35878172,2585.0,2584.9,31.18033961]
[1749134483344,0.35878172,2585.0,2584.9,22.02833961]
[1749134483512,0.35878172,2585.0,2584.9,34.05757961]
[1749134484122,0.35878172,2585.0,2584.9,34.05457961]
[1749134485523,0.35878172,2585.0,2584.9,30.89826661]
[1749134485942,0.35878172,2585.0,2584.9,30.89726661]
[1749134487325,0.35878172,2585.0,2584.9,33.57283361]
[1749134487761,0.35878172,2585.0,2584.9,19.97412161]
[1749134487923,0.35878172,2585.0,2584.9,22.10872161]
[1749134488277,0.35878172,2585.0,2584.9,15.96947161]
[1749134488427,0.35878172,2585.0,2584.9,32.06537161]
[1749134491352,0.35878172,2585.0,2584.9,32.05637161]
[1749134491549,0.35878172,2585.0,2584.9,31.74831161]
[1749134491754,0.35878172,2585.0,2584.9,25.08731161]
[1749134491950,0.35878172,2585.0,2584.9,31.74731161]
[1749134492156,0.35878172,2585.0,2584.9,19.96452161]
[1749134492380,0.35878172,2585.0,2584.9,38.54952161]
[1749134492558,0.35878172,2585.0,2584.9,28.47752161]
[1749134492748,0.35878172,2585.0,2584.9,32.16440361]
[1749134494079,0.35878172,2585.0,2584.9,30.51263661]
[1749134494386,0.35878172,2585.0,2584.9,30.51363661]
[1749134494546,0.35878172,2585.0,2584.9,22.00263661]
[1749134494743,0.35878172,2585.0,2584.9,30.51263661]
[1749134495149,0.35878172,2585.0,2584.9,21.90673661]
[1749134495349,0.35878172,2585.0,2584.9,28.37662161]
[1749134495550,0.35878172,2585.0,2584.9,32.09781261]
[1749134495784,0.35878172,2585.0,2584.9,19.86862161]
[1749134496078,0.35878172,2585.0,2584.9,28.37362161]
[1749134496655,0.35878172,2585.0,2584.9,16.0]
[1749134496878,0.35878172,2585.0,2584.9,17.854]
[1749134497082,0.35878172,2585.0,2584.9,28.37162161]
[1749134497578,0.35878172,2585.0,2584.9,28.36962161]
[1749134498880,0.35878172,2585.0,2584.9,12.36962161]
[1749134499186,0.35878172,2585.0,2584.9,12.36362161]
[1749134499952,0.35878172,2585.0,2584.9,12.36062161]
[1749134500857,0.35878172,2585.0,2584.9,3.86862161]
[1749134501059,0.35878172,2585.0,2584.9,8.488]
[1749134501255,0.35878172,2585.0,2584.9,1.854]
[1749134501455,0.35878172,2585.0,2584.9,8.489]
[1749134501795,0.35878172,2585.0,2584.9,8.488]
[1749134502010,1.0971,2584.9,2584.4,3.86922248]
[1749134502215,2.21504925,2584.9,2584.8,3.86877127]
[1749134502562,0.35878172,2585.0,2584.9,50.51452161]
[1749134502690,0.35908746,2585.2,2585.1,60.2028331]
[1749134503230,0.15415417,2585.8,2585.7,40.74877068]
[1749134503368,0.48192766,2586.9,2585.8,0.55]
[1749134503369,0.02,2586.9,2585.8,0.55]
[1749134503573,0.02,2586.9,2586.8,27.63999611]
[1749134503807,0.02,2586.9,2586.8,43.98345111]
[1749134504503,0.02,2586.9,2586.8,31.4573097]
[1749134504668,0.02,2586.9,2586.8,28.6095617]
[1749134505106,0.02,2586.9,2586.8,40.9934857]
[1749134505277,0.02,2586.9,2586.8,37.1215617]
[1749134505478,0.02,2586.9,2586.8,10.901731]
[1749134505678,0.02,2586.9,2586.8,16.863]
[1749134505907,0.99436108,2586.9,2586.8,16.863]
[1749134506105,0.02,2586.9,2586.8,21.13867646]
[1749134506291,0.02,2586.9,2586.8,25.74897646]
[1749134506608,0.02,2586.9,2586.8,41.74897646]
[1749134506984,0.02,2586.9,2586.8,43.95987646]
[1749134507196,0.02,2587.9,2586.8,43.95987646]
[1749134507197,0.02,2587.9,2587.8,20.83991726]
[1749134507403,0.02,2587.9,2587.8,55.16742806]
[1749134507601,0.02,2587.9,2587.8,54.60172606]
[1749134507905,0.02,2588.9,2588.8,19.86279357]
[1749134508104,0.02,2588.9,2588.8,28.41179357]
[1749134508305,0.02,2588.9,2588.8,16.0]
[1749134508503,0.02,2588.9,2588.8,17.853]
[1749134508692,0.02,2588.9,2588.8,12.41179357]
[1749134508895,0.02,2588.9,2588.8,58.80596424]
[1749134509095,0.02,2588.9,2588.8,58.86686424]
[1749134509281,0.02,2588.9,2588.8,24.01549224]
[1749134509633,0.02,2588.9,2588.8,32.86158524]
[1749134510135,0.02,2588.9,2588.8,47.49644404]
[1749134510520,0.02,2589.9,2589.8,33.26239103]
[1749134510723,0.31039426,2589.9,2589.8,39.40173003]
[1749134511037,0.02,2590.9,2590.4,3.86040765]
[1749134511223,0.02,2590.9,2590.8,43.58342244]
[1749134511531,0.02,2590.9,2590.8,50.99196364]
[1749134511733,0.02,2590.9,2590.8,35.80168507]
[1749134511901,0.02,2590.9,2590.8,26.32859307]
[1749134512235,0.02,2590.9,2590.8,31.32771307]
[1749134512534,0.02,2590.9,2590.8,31.32971307]
[1749134512734,0.02,2590.9,2590.8,23.81650907]
[1749134513035,0.02,2590.9,2590.8,31.85541064]
[1749134513221,0.02,2590.9,2590.8,42.18541064]
[1749134513529,0.02,2590.9,2590.8,42.57937038]
[1749134513934,0.02,2590.9,2590.8,33.64437038]
[1749134514120,0.02,2590.9,2590.8,26.33]